[Event "26th Hit Open-A 2022"]
[Site "Nova Gorica"]
[Date "2022.09.19"]
[Round "6.4"]
[White "Kaasen, Tor Fredrik"]
[Black "Debevec, Blaz"]
[Result "1-0"]
[ECO "D15"]
[WhiteElo "2442"]
[BlackElo "2056"]
[Annotator "TA"]
[PlyCount "79"]
[EventDate "2022.09.16"]
[EventType "swiss"]
[EventCountry "SLO"]
[SourceTitle "playchess.com"]
[Source "ChessBase"]
[SourceQuality "1"]
[TimeControl "5400+30"]

{[%evp 10,79,21,16,25,16,12,12,22,15,77,74,81,77,104,105,97,84,122,63,75,74,94,84,94,93,114,121,138,131,143,128,156,148,127,138,145,137,150,108,118,102,142,78,84,75,157,162,154,172,169,170,161,156,263,247,247,240,314,312,272,136,485,478,751,739,710,699,1445,1383,3308,2972]} 1. d4 {[%emt 0:03:21]} d5 {[%emt 0:00:26]} 2. c4 {[%emt 0:00:28]} c6 {[%emt 0:00:04]} 3. Nf3 {[%emt 0:00:27]} Nf6 {[%emt 0:00:05]} 4. e3 {[%emt 0:00:29]} Bf5 {[%emt 0:01:20]} 5. Nc3 {[%emt 0:00:36]} a6 {[%emt 0:00:32]} 6. Qb3 {[%emt 0:00:42] CPLX 2.1} Ra7 {[%emt 0:02:18] BESTDEEP. D15: Slav Defence: 4 Nc3 a6 and gambit lines after 4 Nc3 dxc4.} 7. Bd2 {[%emt 0:00:19] CPLX 2.2 9 (Nf3-h4) (=5)} e6 {[%emt 0:02:59] CPLX 2.2} 8. Nh4 {[%emt 0:00:30] BESTDEEP} Be4 {[%emt 0:04:59] CPLX 2.5. The position is equal.} 9. cxd5 {[%emt 0:00:26] CPLX 2.7 7 (Nc3xe4) (=4)} exd5 {[%emt 0:02:12] RELBLUND 62 (Be4xd5) (=16)} (9... Bxd5 $11 {keeps the balance.} 10. Qc2 (10. Nxd5 cxd5 11. Bd3 Nc6 $11) 10... Nbd7) 10. f3 $16 {[%emt 0:02:46] EASY} Bg6 {[%emt 0:02:06] [#] CPLX 2.7} 11. O-O-O $146 {[%emt 0:09:37] CPLX 2.4 4 (Nh4xg6) (=3)} ({Predecessor:} 11. Nxg6 hxg6 12. O-O-O Be7 13. e4 dxe4 14. fxe4 b5 15. e5 Nd5 16. Be2 Rh4 17. Be1 {0-1 (54) Vitiugov,N (2721)-Bryzgalin,K (2424) Sochi 2016}) 11... Nbd7 {[%emt 0:07:02] CPLX 2.5 27 (b7-b5) (=15)} 12. Nxg6 {[%emt 0:02:48] CPLX 2.6 0 (e3-e4) (=3)} hxg6 {[%emt 0:01:35] RECAPT} 13. e4 {[%emt 0:00:24][%cal Re4d5] CPLX 2.3} Qb6 {[%emt 0:01:44] [#] CPLX 2.6 38 (Bf8-e7) (=16)} 14. Qxb6 {[%emt 0:04:38] MISSDEEP-Qb3-c2 59 (Qb3-c2) (=9)} ({Don't play} 14. exd5 $6 Qxb3 15. Re1+ (15. axb3 Nxd5 16. Re1+ Kd8 $14) 15... Kd8 16. axb3 Nxd5 $11) (14. Qc2 $1 $16) 14... Nxb6 $14 {[%emt 0:02:15] RECAPT} 15. e5 {[%emt 0:00:49] CPLX 2.2 1 (Kc1-c2) (=8)} Ng8 {[%emt 0:02:26] MISS-Nf6-d7 20 (Nf6-d7) (=15)} 16. Kb1 {[%emt 0:01:21] CPLX 2.0 10 (h2-h4) (=8)} Be7 {[%emt 0:01:53] CPLX 2.0 10 (Bf8-b4) (=14)} 17. Bd3 {[%emt 0:02:10] CPLX 2.0} g5 {[%emt 0:01:10] CPLX 2.1 21 (Ra7-a8) (=15)} 18. Ne2 {[%emt 0:05:58] CPLX 2.1} Nd7 {[%emt 0:02:44] CPLX 2.1 17 (a6-a5) (=15)} 19. g3 {[%emt 0:02:21] BESTDEEP} Nf8 {[%emt 0:03:27] CPLX 2.1 12 (Ra7-a8) (=15)} 20. Rdf1 {[%emt 0:11:13] CPLX 2.0 15 (Rd1-g1) (=7)} g6 {[%emt 0:01:38] CPLX 2.0 28 (Nf8-e6) (=16)} 21. f4 {[%emt 0:03:16] CPLX 2.1 8 (h2-h4) (=7)} gxf4 {[%emt 0:00:13] BESTDEEP} 22. Nxf4 {[%emt 0:00:56] RECAPT} g5 {[%emt 0:01:51] CPLX 2.2 7 (Ra7-a8) (=14)} 23. Ne2 {[%emt 0:01:23] CPLX 2.4} Ne6 {[%emt 0:01:08] CPLX 2.1} 24. Rf3 {[%emt 0:01:24] CPLX 2.2 42 (h2-h4) (=8)} Bd8 {[%emt 0:02:58] CPLX 2.3 10 (b7-b6) (=13)} 25. h4 {[%emt 0:03:31] BESTDEEP} b6 {[%emt 0:04:25] CPLX 2.5 40 (g5xh4) (=15)} 26. b4 {[%emt 0:01:26] CPLX 2.5 64 (Bd3-f5) (=10)} (26. Bf5 $142) 26... a5 {[%emt 0:00:28] CPLX 2.5 6 (c6-c5) (=14)} 27. Rc1 {[%emt 0:05:30] CPLX 2.7 9 (b4xa5) (=10)} (27. bxa5 {is more complex.} bxa5 28. Kc2 gxh4 29. gxh4 Bg5 30. Be1) 27... Ne7 {[%emt 0:04:27] CPLX 2.7 82 (Ra7-c7) (=17)} ({Better is} 27... Rc7) 28. Bxg5 $16 {[%emt 0:04:52] White is much more active. DEEPSTRONG=>BLUNDERREACT} Nxg5 {[%emt 0:01:00] RECAPT} 29. hxg5 {[%emt 0:00:12] Threatens to win with b5. RECAPT} axb4 {[%emt 0:00:48] [#] EASY} 30. Rcf1 $1 {[%emt 0:00:58] CPLX 2.4} Ra3 {[%emt 0:05:04] EASY} 31. Nc1 {[%emt 0:08:57] EASY} Rg8 {[%emt 0:07:21] CPLX 2.7 107 (Ne7-c8) (=19)} (31... Nc8 $16) 32. Rxf7 $18 {[%emt 0:00:19] EASY} Rxg5 {[%emt 0:00:12] EASY} 33. e6 {[%emt 0:03:47][%csl Gf1][%cal Rf7f8] CPLX 3.2 7 (Rf7-f8) (=8)} Rg8 {[%emt 0:02:55] Inhibits Rf8+. CPLX 3.8 74 (Ne7-g8) (=20)} 34. Bh7 {[%emt 0:01:25] BESTDEEP} Rh8 {[%emt 0:00:24] EASY} 35. Nd3 $40 {[%emt 0:02:57][%mdl 128] White wants a kill. CPLX 3.6 136 (Nc1-b3) (=12)} (35. Nb3 $18) 35... Bc7 $2 {[%emt 0:03:21][%mdl 8192] A mistake that costs the game. MISSDEEP-b6-b5 349 (b6-b5) (=30)} (35... b5 $16 {is tougher.}) 36. g4 {[%emt 0:00:11][%cal Bg3g4,Bg4g5,Bg5g6,Bg6g7][%mdl 32] Strongly threatening g5. CPLX 4.2=>BLUNDERREACT. White is clearly winning.} Bd6 {[%emt 0:01:32] EVAL 273 (b4-b3) (=38)} (36... b3 $142 37. axb3 Bd6) 37. g5 {[%emt 0:01:38] EVAL} Kd8 {[%emt 0:05:43] [#] EVAL} 38. g6 $1 {[%emt 0:06:42] And now g7 would win. DEEPSTRONG} c5 {[%emt 0:05:44] BEVAL 400 (Kd8-c7) (=48)} (38... Kc7 39. g7) 39. g7 {[%emt 0:01:00] BEVAL} Re8 {[%emt 0:00:05] BEVAL 400 (Rh8-g8) (=58)} 40. Rf8 {[%emt 0:00:26] Weighted Error Value: White=0.13 (very precise) /Black=0.42} 1-0

[Event "26th Hit Open-A 2022"]
[Site "Nova Gorica"]
[Date "2022.09.19"]
[Round "6.5"]
[White "Schreiner, Peter"]
[Black "Ghazarian, Kirk"]
[Result "1/2-1/2"]
[ECO "D02"]
[WhiteElo "2405"]
[BlackElo "2440"]
[Annotator "TA"]
[PlyCount "42"]
[EventDate "2022.09.16"]
[EventType "swiss"]
[EventCountry "SLO"]
[SourceTitle "playchess.com"]
[Source "ChessBase"]
[SourceQuality "1"]
[TimeControl "5400+30"]

{[%evp 9,42,10,33,20,60,57,58,61,58,63,58,54,54,54,54,54,54,54,58,33,39,38,37,0,0,0,12,12,12,11,18,18,19,20,19]} 1. Nf3 {[%emt 0:06:07]} d5 {[%emt 0:00:09]} 2. g3 {[%emt 0:00:08]} Nd7 {[%emt 0:00:26]} 3. d4 {[%emt 0:01:06]} Nb6 {[%emt 0:00:06]} 4. a4 {[%emt 0:01:30]} a5 {[%emt 0:00:06]} 5. Nc3 {[%emt 0:02:03]} Bf5 {[%emt 0:01:40] CPLX 2.0 23 (e7-e6) (=23)} 6. Nh4 {[%emt 0:02:30] CPLX 2.0 13 (Bf1-g2) (=13). D02: 1 d4 d5 2 Nf3 sidelines, including 2...Nf6 3 g3 and 2...Nf6 3 Bf4.} Bg6 {[%emt 0:10:19] CPLX 2.1 40 (Bf5-g4) (=32)} 7. Nxg6 {[%emt 0:09:32] CPLX 2.0} hxg6 {[%emt 0:00:02] RECAPT} 8. e4 {[%emt 0:01:52] CPLX 2.0. White is slightly better.} dxe4 {[%emt 0:04:38] BESTDEEP} 9. Nxe4 {[%emt 0:03:06] RECAPT} Nf6 {[%emt 0:03:06] EASY} 10. Bg2 {[%emt 0:07:23] Strongly threatening Nxf6+. CPLX 2.6} Nxe4 {[%emt 0:04:05] CPLX 2.4} 11. Bxe4 {[%emt 0:00:07] RECAPT} c6 {[%emt 0:00:08] CPLX 2.1} 12. c3 {[%emt 0:02:28] CPLX 2.1} Nd5 {[%emt 0:01:27] CPLX 2.1} 13. h4 {[%emt 0:11:02] CPLX 2.2 0 (Bc1-g5) (=2)} e6 {[%emt 0:00:59] [#] CPLX 2.2} 14. Bg5 $146 {[%emt 0:19:22] CPLX 2.4 25 (Qd1-f3) (=4)} ({Predecessor:} 14. Kf1 Bd6 15. Kg2 Qc7 16. Bg5 Be7 17. Bxd5 cxd5 18. Bxe7 Qxe7 19. Ra3 O-O 20. Rb3 {1-0 (53) Svane,R (2637)-Bartel,M (2616) Warsaw 2021}) 14... Be7 {[%emt 0:00:41] EASY} 15. Bxe7 {[%emt 0:01:56] CPLX 2.7 1 (Bg5-d2) (=4)} Qxe7 {[%emt 0:00:49] RECAPT 0 (Ke8xe7) (=6)} 16. Bxd5 {[%emt 0:03:15] CPLX 2.3 37 (Qd1-d2) (=7)} exd5+ {[%emt 0:01:19] RECAPT. The position is equal.} 17. Kf1 {[%emt 0:01:10] BESTDEEP} O-O {[%emt 0:02:25] CPLX 2.0 12 (Ke8-d7) (=6)} 18. Qf3 {[%emt 0:01:02] BESTDEEP} Rae8 {[%emt 0:02:25] CPLX 2.0} 19. Kg2 {[%emt 0:03:03] CPLX 2.5 1 (Ra1-b1) (=6)} Qe4 {[%emt 0:03:45] CPLX 2.0 7 (Qe7-d7) (=5)} 20. Qxe4 {[%emt 0:01:15] EASY} Rxe4 {[%emt 0:02:00] RECAPT} 21. Rhe1 {[%emt 0:00:46] CPLX 2.0 0 (Ra1-b1) (=5)} Rfe8 {[%emt 0:00:54] Weighted Error Value: White=0.05 (flawless) /Black=0.07 (flawless)} 1/2-1/2

[Event "26th Hit Open-A 2022"]
[Site "Nova Gorica"]
[Date "2022.09.19"]
[Round "6.6"]
[White "Willow, Jonah B"]
[Black "Davies, Nigel R"]
[Result "1-0"]
[ECO "C10"]
[WhiteElo "2385"]
[BlackElo "2420"]
[Annotator "TA"]
[PlyCount "59"]
[EventDate "2022.09.16"]
[EventType "swiss"]
[EventCountry "SLO"]
[SourceTitle "playchess.com"]
[Source "ChessBase"]
[SourceQuality "1"]
[TimeControl "5400+30"]

{[%evp 20,59,47,34,58,29,23,19,50,52,55,56,106,118,101,92,102,116,253,260,629,649,761,742,902,916,904,904,825,903,881,877,874,868,810,684,788,677,1043,644,29982,560]} 1. e4 {[%emt 0:00:08]} e6 {[%emt 0:00:06]} 2. d4 {[%emt 0:00:16]} d5 {[%emt 0:00:06]} 3. Nc3 {[%emt 0:00:17]} dxe4 {[%emt 0:00:44]} 4. Nxe4 {[%emt 0:00:05]} Nd7 {[%emt 0:00:06]} 5. Nf3 {[%emt 0:00:18]} Ngf6 {[%emt 0:00:06]} 6. Nxf6+ {[%emt 0:00:16]} Nxf6 {[%emt 0:00:06]} 7. Bd3 {[%emt 0:00:52]} c5 {[%emt 0:03:20]} 8. Be3 {[%emt 0:00:17]} Qc7 {[%emt 0:01:52]} 9. Qe2 {[%emt 0:00:05]} Be7 {[%emt 0:06:01]} 10. O-O-O {[%emt 0:00:29]} O-O {[%emt 0:01:32]} 11. dxc5 {[%emt 0:01:58] CPLX 2.4} b6 {[%emt 0:00:42] CPLX 2.3 24 (Bc8-d7) (=24). C10: French with 3 Nc3: Unusual Black 3rd moves and 3...dxe4.} 12. c6 {[%emt 0:22:15] CPLX 2.5 29 (c5xb6) (=15)} Qxc6 {[%emt 0:01:26] EASY} 13. Ne5 {[%emt 0:00:29] BESTDEEP} Qa4 {[%emt 0:03:07] CPLX 3.1 31 (Qc6-c7) (=18). The position is equal.} 14. Kb1 {[%emt 0:31:06] BESTDEEP} Bb7 {[%emt 0:00:18] CPLX 3.4} 15. Bd4 {[%emt 0:01:28] [#] BESTDEEP} Rfc8 $146 {[%emt 0:16:15] [#] CPLX 3.5 50 (Rf8-d8) (=21)} (15... Bxg2 $2 16. Rhg1 Rad8 17. Bb5 Qxd4 18. Rxd4 Rxd4 19. Rxg2 $18) (15... Rfd8 $14 16. Bb5 Ba6 17. Bxa6 Rxd4) ({Predecessor:} 15... Rac8 16. Rhe1 Rfd8 17. Nxf7 Rxd4 18. Qxe6 Bd5 19. Nh6+ Kh8 20. Qxc8+ Ng8 {1-0 (32) Pitra,A (2390)-Lee,J (2137) Tagaytay City 2017}) 16. Rhe1 $1 $16 {[%emt 0:08:56][%cal Oe5f7] aiming for Nxf7! BESTDEEP} Qe8 {[%emt 0:03:09] BESTDEEP} (16... Bxg2 $2 17. Nxf7 $1 Bd5 18. b3 $1 $18) (16... Bd5 $2 17. c4 (17. b3 Qe8 $18) 17... Bc5 18. Bxc5 Bxc4 19. Bxc4 $18) 17. Bb5 {[%emt 0:04:19] CPLX 2.7 9 (Ne5-g4) (=5)} Qf8 {[%emt 0:00:06] EASY} 18. g4 {[%emt 0:07:19][%cal Bg2g4,Bg4g5,Bg5f6,Bf6g7][%mdl 32] White is more active. BESTDEEP} Bc5 {[%emt 0:08:34] This costs Black the game. CPLX 2.7 137 (Nf6-d5) (=30)} (18... Nd5 $16) 19. g5 $18 {[%emt 0:02:59] CPLX 2.7=>BLUNDERREACT} Nd5 {[%emt 0:03:37] MISSDEEP-Bc5xd4 369 (Bc5xd4) (=68)} (19... Bxd4 20. Rxd4 Nd5) 20. Nd7 {[%emt 0:02:07] CPLX 2.9=>BLUNDERREACT} Qe7 {[%emt 0:00:27] [#] Hoping for ...Bxd4. EVAL 112 (Qf8-d8) (=72)} 21. Bxg7 {[%emt 0:04:13][%mdl 512] Black must now prevent Bf6. EVAL} Kxg7 {[%emt 0:01:18] EVAL 160 (Bb7-a6) (=80)} (21... Rd8 22. Bf6) 22. Qe5+ {[%emt 0:00:04] EVAL} Kg8 {[%emt 0:00:14] EVAL} 23. Nf6+ {[%emt 0:04:40] EVAL} Nxf6 {[%emt 0:02:05] EVAL} 24. gxf6 {[%emt 0:00:02] EVAL} Qf8 {[%emt 0:00:08] EVAL} 25. Rg1+ {[%emt 0:00:05] EVAL} Kh8 {[%emt 0:00:05] EVAL} 26. Rg7 {[%emt 0:00:03] EVAL} Qxg7 {[%emt 0:01:49] EVAL} 27. fxg7+ {[%emt 0:00:05] RECAPT} Kg8 {[%emt 0:00:04] EVAL} 28. Bd3 {[%emt 0:01:08] White wants to mate with Rg1. CPLX 5.1 111 (b2-b4) (=8)} Rd8 {[%emt 0:01:15] BEVAL 366 (Bb7-f3) (=69)} 29. Rg1 {[%emt 0:00:44][%cal Od3h7] Bxh7+! would kill now. CPLX 5.9 399 (Bd3xh7) (=29)} Rd5 {[%emt 0:00:16] [#] RELBLUND 400 (Bb7-f3) (=87)} 30. Qe4 {[%emt 0:00:35] Weighted Error Value: White=0.67/Black=1.17} (30. Bxh7+ $142 $1 {[%mdl 512]} Kxh7 31. Qf6 Kg8 32. Qh6 f6 33. Qh8+ Kf7 34. g8=Q+ Rxg8 35. Qxg8+ Ke7 36. Rg7+ Kd6 37. Qb8+ Kc6 38. Qxb7+ Kb5 39. a4+ Kc4 40. Rg4+ Bd4 41. Qc6+ Rc5 42. Qxe6+ Kb4 43. Qd7) 1-0

[Event "26th Hit Open-A 2022"]
[Site "Nova Gorica"]
[Date "2022.09.19"]
[Round "6.7"]
[White "Royal, Shreyas"]
[Black "Tisaj, Domen"]
[Result "1-0"]
[ECO "D45"]
[WhiteElo "2412"]
[BlackElo "2325"]
[Annotator "TA"]
[PlyCount "111"]
[EventDate "2022.09.16"]
[EventType "swiss"]
[EventCountry "SLO"]
[SourceTitle "playchess.com"]
[Source "ChessBase"]
[SourceQuality "1"]
[TimeControl "5400+30"]

{[%evp 18,111,11,13,27,12,60,23,21,7,14,0,0,0,8,-2,29,25,33,19,38,26,25,20,53,39,49,47,47,56,44,58,124,93,92,84,131,23,22,21,33,0,0,0,0,0,0,0,0,0,0,0,0,-85,29,25,26,31,32,20,26,29,233,233,210,216,245,234,230,237,956,922,884,843,766,752,676,344,599,197,575,572,1006,1003,1003,1000,977,985,984,983,960,950,930,888,2313,2087]} 1. d4 {[%emt 0:00:03]} d5 {[%emt 0:00:07]} 2. c4 {[%emt 0:00:05]} c6 {[%emt 0:00:04]} 3. Nf3 {[%emt 0:00:05]} Nf6 {[%emt 0:00:05]} 4. Nc3 {[%emt 0:00:09]} e6 {[%emt 0:00:06]} 5. e3 {[%emt 0:00:25]} Nbd7 {[%emt 0:00:07]} 6. Qc2 {[%emt 0:00:10]} b6 {[%emt 0:00:11]} 7. Bd3 {[%emt 0:01:14]} Bb7 {[%emt 0:01:16]} 8. O-O {[%emt 0:00:32]} Bd6 {[%emt 0:03:07]} 9. b3 {[%emt 0:00:33]} O-O {[%emt 0:00:46]} 10. Bb2 {[%emt 0:00:05] CPLX 2.5} Qe7 {[%emt 0:00:10] CPLX 2.5 14 (h7-h6) (=14). D45: Semi-Slav: 5 e3.} 11. Rfe1 {[%emt 0:01:33] CPLX 2.5 15 (c4xd5) (=8)} Rad8 {[%emt 0:00:18] CPLX 2.5 48 (h7-h6) (=31)} (11... h6 $11) 12. Rad1 {[%emt 0:00:59] CPLX 2.5 37 (c4xd5) (=17)} Rfe8 {[%emt 0:00:08] CPLX 2.5 0 (h7-h6) (=21). White has an edge.} 13. Bf1 {[%emt 0:08:36] CPLX 2.5 14 (e3-e4) (=17)} c5 {[%emt 0:00:08] DEEPSTRONG} 14. cxd5 {[%emt 0:00:16] BESTDEEP} exd5 {[%emt 0:00:11] RECAPT} 15. dxc5 {[%emt 0:00:07] CPLX 2.5 0 (Nc3-b5) (=11)} bxc5 {[%emt 0:00:16] RECAPT} 16. Ne2 {[%emt 0:01:21] CPLX 2.6 10 (Rd1-c1) (=11)} Ne4 {[%emt 0:05:40][%cal Oe4f2] CPLX 2.8 31 (Qe7-f8) (=13)} 17. Ng3 {[%emt 0:04:35] [#] CPLX 3.5} Nxg3 $146 {[%emt 0:09:09] BESTDEEP} ({Predecessor:} 17... Qe6 18. Nxe4 dxe4 19. Qc3 Nf6 20. Nd2 Qf5 21. h3 Bc7 22. Nc4 Qg5 23. Rxd8 Rxd8 {½-½ (33) Gretarsson,H (2410)-Stefansson,H (2541) Reykjavik 2021}) 18. hxg3 {[%emt 0:00:10] RECAPT} a6 {[%emt 0:02:44] CPLX 3.5 19 (Nd7-f6) (=12)} 19. Rc1 {[%emt 0:18:59] MISS-Bf1-d3 12 (Bf1-d3) (=9)} (19. Bd3 $5 {[%cal Rd3h7]}) 19... Qe6 {[%emt 0:05:43] CPLX 3.5 0 (Nd7-f6) (=11)} 20. Bd3 {[%emt 0:02:52] CPLX 3.6 5 (Bf1-e2) (=8)} Qh6 {[%emt 0:02:28] CPLX 3.5 33 (g7-g6) (=13)} 21. Bf5 {[%emt 0:04:53] CPLX 3.5 14 (Rc1-d1) (=9)} (21. Rcd1 $5 {[%cal Rd3f5]}) 21... Nf6 {[%emt 0:17:57] CPLX 3.6 10 (Nd7-b8) (=13)} 22. Bxf6 {[%emt 0:01:49] CPLX 3.6} Qxf6 {[%emt 0:03:09] RECAPT} 23. Bxh7+ {[%emt 0:00:12] EASY} Kf8 {[%emt 0:00:24] CPLX 3.2} 24. Bd3 {[%emt 0:00:23] CPLX 3.0 0 (Bh7-f5) (=7)} Qe7 {[%emt 0:11:30] Against e4. CPLX 2.8 66 (Re8-e7) (=15)} ({Black should play} 24... Re7 $14) 25. Nh4 {[%emt 0:02:59] CPLX 2.5 31 (Qc2-e2) (=9)} Bc8 {[%emt 0:01:37] BESTDEEP} 26. Qe2 {[%emt 0:03:55] CPLX 2.7 8 (e3-e4) (=9)} g5 {[%emt 0:01:13] CPLX 2.7 47 (Qe7-f6) (=16)} (26... Qf6 $142) 27. Qh5 {[%emt 0:01:45] White is more active. RELBLUND 108 (Nh4-f3) (=14)} (27. Nf3 $16) 27... Qf6 $11 {[%emt 0:01:04] EASY} 28. Nf3 {[%emt 0:00:10] CPLX 4.0 1 (Qh5-f3) (=13)} g4 {[%emt 0:01:17] CPLX 3.5} 29. Ng5 {[%emt 0:09:27] aiming for Nh7+. CPLX 3.5 33 (Nf3-d2) (=14)} Qg7 {[%emt 0:01:14] BESTDEEP} 30. Nxf7 {[%emt 0:00:28] BESTDEEP} Qxf7 {[%emt 0:00:37] RECAPT} 31. Bg6 {[%emt 0:00:04][%mdl 64] Deflection. EASY} Qg8 {[%emt 0:00:43] EASY} 32. Bxe8 {[%emt 0:02:11] EASY} Rxe8 {[%emt 0:00:05] RECAPT} 33. Qh6+ {[%emt 0:00:04] CPLX 5.2 0 (Re1-d1) (=12)} Ke7 {[%emt 0:00:14] EASY} 34. e4 $40 {[%emt 0:00:04][%mdl 128] Against Bf5. Strongly threatening e5. White mounts an attack. CPLX 5.7 0 (b3-b4) (=12)} Kd7 {[%emt 0:02:20] EASY} 35. e5 {[%emt 0:03:27] RELBLUND 85 (Qh6-d2) (=14)} (35. Qd2 $11 {keeps the balance.}) 35... Rxe5 {[%emt 0:02:16] MISSDEEP-Bd6-f8 114 (Bd6-f8) (=15)} ({Black should try} 35... Bf8 $1 $17 {[%cal Rf8h6]} 36. Qh5 (36. Qb6 Qe6 $11) 36... Qe6) 36. Rxe5 {[%emt 0:00:08] The board is on fire. RECAPT} Bxe5 {[%emt 0:00:08] RECAPT} 37. Rxc5 {[%emt 0:00:18] CPLX 4.2} Bd6 {[%emt 0:00:32] EASY} 38. Rc1 {[%emt 0:00:07] CPLX 5.0} Bb7 {[%emt 0:01:58] EASY} 39. Qe3 {[%emt 0:00:07] Threatens to win with Qb6. BESTDEEP} Qe8 $2 {[%emt 0:15:30] A mistake that costs the game. MISS-Bd6-a3 204 (Bd6-a3) (=20)} (39... Ba3 $11 {and Black is okay.}) 40. Qb6 $1 $18 {[%emt 0:01:11] DEEPSTRONG=>BLUNDERREACT} Qa8 {[%emt 0:00:11] [#] CPLX 5.2} 41. b4 $1 {[%emt 0:02:41] CPLX 5.1} Qb8 {[%emt 0:01:59] CPLX 5.1 29 (Bb7-c6) (=19)} 42. a4 {[%emt 0:00:55][%cal Ba2a4,Ba4a5][%mdl 32] b5 is the strong threat. CPLX 5.1} Qa8 {[%emt 0:02:06] [#] DEEPSTRONG} 43. a5 $1 {[%emt 0:00:28] DEEPSTRONG} Bc8 $2 {[%emt 0:01:39] EVAL 400 (Bb7-c6) (=30)} (43... Bc6 44. Qd4 Qb7 45. Qxg4+ Kc7 46. Qg7+ (46. Qg8 Qxb4 47. Qf7+ Be7 $16) 46... Kc8 47. Qg8+ Kd7 48. Qf7+ Kd8) 44. Qd4 {[%emt 0:01:59] EVAL} Qb7 {[%emt 0:01:58] EVAL} 45. Qxg4+ {[%emt 0:00:07] EVAL} Kd8 {[%emt 0:00:02] EVAL} 46. Qg8+ {[%emt 0:00:41] EVAL} Kd7 {[%emt 0:00:01] EASY} 47. Rd1 {[%emt 0:08:43] Black must now prevent Rc1. CPLX 5.1 332 (Qg8-h7) (=19)} Qxb4 $2 {[%emt 0:00:49] CPLX 5.0 255 (Qb7-c6) (=33)} (47... Qc6 48. g4 (48. Rxd5 Qc1+ 49. Kh2 Qh6+ 50. Kg1 Qc1+ 51. Kh2 Qh6+ 52. Kg1 Qc1+ $11) (48. Qxd5 Qxd5 49. Rxd5 Ke6 $16) 48... Kc7) 48. Qxd5 $2 {[%emt 0:00:18] MISSDEEP-Rd1-c1 400 (Rd1-c1) (=28)} (48. Rc1 Qb7 49. Kh2 (49. Rd1 Qc6 $16)) 48... Bb7 {[%emt 0:01:02] CPLX 4.9 378 (Kd7-c7) (=42)} (48... Kc7 49. Rc1+ Kb8) 49. Qf7+ {[%emt 0:00:06] CPLX 5.3=>BLUNDERREACT. White is clearly winning.} Kc8 {[%emt 0:03:11] BEVAL 400 (Kd7-d8) (=51)} 50. Qe8+ {[%emt 0:04:44] BEVAL} Kc7 {[%emt 0:00:01] BEVAL} 51. Rc1+ {[%emt 0:00:30] EVAL} Bc5 {[%emt 0:00:01] EVAL} 52. Qe5+ {[%emt 0:01:13] EVAL} Kc6 {[%emt 0:00:06] EVAL} 53. Qe6+ {[%emt 0:00:17] EVAL} Kc7 {[%emt 0:01:08] EVAL} 54. Qf5 {[%emt 0:00:12] EVAL} Kd6 {[%emt 0:00:19] EVAL} 55. Rb1 {[%emt 0:04:48] EVAL} Qe4 {[%emt 0:01:42] BEVAL 400 (Bc5xf2) (=53)} 56. Rd1+ {[%emt 0:00:06] Weighted Error Value: White=0.31/Black=0.57} 1-0